fUSD/lending_fUSD_20240803
["ID","MTS","AMOUNT","RATE_DAILY","PERIOD"]
[333944719,1722643850340,-450.65140926,0.00016438,2]
[333944720,1722643850349,-500.0,0.00016438,2]
[333944721,1722643850359,-2437.76,0.00016438,2]
[333944722,1722643850368,-585.4,0.00016438,2]
[333944723,1722643850378,-975.1,0.00016438,2]
[333944724,1722643850388,-500.0,0.00016438,2]
[333944725,1722643850397,-1334.14,0.00016438,2]
[333944726,1722643850406,-975.06,0.00016438,2]
[333944727,1722643850416,-500.0,0.00016438,2]
[333944728,1722643850425,-500.0,0.00016438,2]
[333944729,1722643850435,-500.0,0.00016438,2]
[333944730,1722643850445,-500.0,0.00016438,2]
[333944731,1722643850455,-151.0,0.00016438,2]
[333944732,1722643850468,-151.0,0.00016438,2]
[333944733,1722643850479,-1893.92,0.00016438,2]
[333944734,1722643850489,-1203.67,0.00016438,2]
[333944735,1722643850500,-151.0,0.00016438,2]
[333944736,1722643850510,-500.0,0.00016438,2]
[333944737,1722643850520,-237.59286,0.00016438,2]
[333944738,1722643850529,-2030.3,0.00016438,2]
[333944739,1722643850540,-655.86,0.00016438,2]
[333944740,1722643850551,-899.11,0.00016438,2]
[333944741,1722643850561,-510.61,0.00016438,2]
[333944742,1722643850571,-500.0,0.00016438,2]
[333944743,1722643850581,-561.64,0.00016438,2]
[333944744,1722643850591,-2178.03,0.00016438,2]
[333944745,1722643850600,-1414.21,0.00016438,2]
[333944746,1722643850611,-620.4,0.00016438,2]
[333944747,1722643850621,-500.0,0.00016438,2]
[333944748,1722643850630,-500.0,0.00016438,2]
[333944749,1722643850640,-500.0,0.00016438,2]
[333944750,1722643850650,-1698.59,0.00016438,2]
[333944751,1722643850660,-209.81199503,0.00016438,2]
[333944752,1722643850670,-1403.18,0.00016438,2]
[333944753,1722643850679,-500.0,0.00016438,2]
[333944754,1722643850689,-500.0,0.00016438,2]
[333944755,1722643850698,-741.81,0.00016438,2]
[333944756,1722643850708,-500.0,0.00016438,2]
[333944757,1722643850717,-500.0,0.00016438,2]
[333944758,1722643850727,-500.0,0.00016438,2]
[333944759,1722643850737,-710.55,0.00016438,2]
[333944760,1722643850746,-2216.71,0.00016438,2]
[333944761,1722643850756,-986.66,0.00016438,2]
[333944762,1722643850766,-1565.18,0.00016438,2]
[333944763,1722643850775,-500.0,0.00016438,2]
[333944764,1722643850786,-638.59,0.00016438,2]
[333944765,1722643850795,-512.39877774,0.00016438,2]
[333944766,1722643850805,-925.15,0.00016438,2]
[333944767,1722643850815,-2048.92,0.00016438,2]
[333944768,1722643850824,-500.0,0.00016438,2]
[333944769,1722643850834,-500.0,0.00016438,2]
[333944770,1722643850843,-758.07,0.00016438,2]
[333944771,1722643850853,-500.0,0.00016438,2]
[333944772,1722643850863,-500.0,0.00016438,2]
[333944773,1722643850873,-500.0,0.00016438,2]
[333944774,1722643850883,-500.0,0.00016438,2]
[333944775,1722643850892,-1691.03,0.00016438,2]
[333944776,1722643850902,-500.0,0.00016438,2]
[333944777,1722643850911,-1519.16,0.00016438,2]
[333944778,1722643850920,-1044.18,0.00016438,2]
[333944779,1722643850929,-500.0,0.00016438,2]
[333944780,1722643850940,-500.0,0.00016438,2]
[333944781,1722643850950,-1724.75,0.00016438,2]
[333944782,1722643850959,-500.0,0.00016438,2]
[333944783,1722643850968,-500.0,0.00016438,2]
[333944784,1722643850978,-584.41,0.00016438,2]
[333944785,1722643850988,-500.0,0.00016438,2]
[333944786,1722643850997,-944.35,0.00016438,2]
[333944787,1722643851007,-548.53,0.00016438,2]
[333944788,1722643851017,-500.0,0.00016438,2]
[333944789,1722643851026,-500.0,0.00016438,2]
[333944790,1722643851036,-500.0,0.00016438,2]
[333944791,1722643851046,-500.0,0.00016438,2]
[333944792,1722643851056,-2004.98,0.00016438,2]
[333944793,1722643851067,-643.15,0.00016438,2]
[333944794,1722643851076,-500.0,0.00016438,2]
[333944795,1722643851085,-500.0,0.00016438,2]
[333944796,1722643851095,-620.27,0.00016438,2]
[333944797,1722643851105,-810.99,0.00016438,2]
[333944798,1722643851115,-500.0,0.00016438,2]
[333944799,1722643851125,-500.0,0.00016438,2]
[333944800,1722643851134,-500.0,0.00016438,2]
[333944801,1722643851145,-500.0,0.00016438,2]
[333944802,1722643851160,-1670.55,0.00016438,2]
[333944803,1722643851170,-500.0,0.00016438,2]
[333944804,1722643851179,-500.0,0.00016438,2]
[333944805,1722643851189,-500.0,0.00016438,2]
[333944806,1722643851201,-1950.2,0.00016438,2]
[333944807,1722643851212,-1797.43,0.00016438,2]
[333944808,1722643851221,-500.0,0.00016438,2]
[333944809,1722643851232,-644.38,0.00016438,2]
[333944810,1722643851243,-500.0,0.00016438,2]
[333944811,1722643851252,-500.0,0.00016438,2]
[333944812,1722643851262,-545.4,0.00016438,2]
[333944813,1722643851273,-500.0,0.00016438,2]
[333944814,1722643851282,-500.0,0.00016438,2]
[333944815,1722643851292,-2000.0,0.00016438,2]
[333944816,1722643851302,-500.0,0.00016438,2]
[333944817,1722643851311,-500.0,0.00016438,2]
[333944818,1722643851321,-500.0,0.00016438,2]
[333944819,1722643851331,-1027.91,0.00016438,2]
[333944820,1722643851340,-500.0,0.00016438,2]
[333944821,1722643851350,-500.0,0.00016438,2]
[333944822,1722643851359,-500.0,0.00016438,2]
[333944823,1722643851369,-1097.24,0.00016438,2]
[333944824,1722643851379,-500.0,0.00016438,2]
[333944825,1722643851389,-3172.99,0.00016438,2]
[333944826,1722643851398,-1016.43,0.00016438,2]
[333944827,1722643851408,-500.0,0.00016438,2]
[333944828,1722643851417,-500.0,0.00016438,2]
[333944829,1722643851427,-848.67,0.00016438,2]
[333944830,1722643851437,-500.0,0.00016438,2]
[333944831,1722643851447,-368.966468,0.00016438,2]
[333944832,1722643851456,-368.966468,0.00016438,2]
[333944833,1722643851467,-1526.01,0.00016438,2]
[333944834,1722643851476,-500.0,0.00016438,2]
[333944835,1722643851485,-500.0,0.00016438,2]
[333944836,1722643851495,-500.0,0.00016438,2]
[333944837,1722643851506,-368.966468,0.00016438,2]
[333944838,1722643851515,-368.966468,0.00016438,2]
[333944839,1722643851524,-1493.74,0.00016438,2]
[333944840,1722643851534,-500.0,0.00016438,2]
[333944841,1722643851546,-720.29,0.00016438,2]
[333944842,1722643851556,-500.0,0.00016438,2]
[333944843,1722643851566,-500.0,0.00016438,2]
[333944844,1722643851575,-1095.26,0.00016438,2]
[333944845,1722643851585,-1174.31,0.00016438,2]
[333944846,1722643851595,-1935.97,0.00016438,2]
[333944847,1722643851604,-500.0,0.00016438,2]
[333944848,1722643851614,-1244.34,0.00016438,2]
[333944849,1722643851624,-500.0,0.00016438,2]
[333944850,1722643851633,-500.0,0.00016438,2]
[333944851,1722643851643,-981.32,0.00016438,2]
[333944852,1722643851653,-500.0,0.00016438,2]
[333944853,1722643851663,-994.85,0.00016438,2]
[333944854,1722643851673,-735.54,0.00016438,2]
[333944855,1722643851683,-500.0,0.00016438,2]
[333944856,1722643851692,-1249.06,0.00016438,2]
[333944857,1722643851702,-1630.15,0.00016438,2]
[333944858,1722643851712,-3434.38,0.00016438,2]
[333944859,1722643851722,-3554.23,0.00016438,2]
[333944860,1722643851732,-501.992491,0.00016438,2]
[333944861,1722643851741,-538.6,0.00016438,2]
[333944862,1722643851751,-500.0,0.00016438,2]
[333944863,1722643851761,-755.48,0.00016438,2]
[333944864,1722643851772,-500.0,0.00016438,2]
[333944865,1722643851782,-500.0,0.00016438,2]
[333944866,1722643851792,-664.26,0.00016438,2]
[333944867,1722643851802,-500.0,0.00016438,2]
[333944868,1722643851812,-500.0,0.00016438,2]
[333944869,1722643851822,-500.0,0.00016438,2]
[333944870,1722643851831,-677.57,0.00016438,2]
[333944871,1722643851841,-500.0,0.00016438,2]
[333944872,1722643851851,-500.0,0.00016438,2]
[333944873,1722643851860,-500.0,0.00016438,2]
[333944874,1722643851869,-578.41,0.00016438,2]
[333944875,1722643851879,-554.95,0.00016438,2]
[333944876,1722643851889,-701.62,0.00016438,2]
[333944877,1722643851899,-902.76,0.00016438,2]
[333944878,1722643851910,-754.33,0.00016438,2]
[333944879,1722643851920,-1690.91,0.00016438,2]
[333944880,1722643851930,-590.64,0.00016438,2]
[333944881,1722643851940,-1214.9,0.00016438,2]
[333944882,1722643851950,-1431.27,0.00016438,2]
[333944883,1722643851960,-500.0,0.00016438,2]
[333944884,1722643851971,-500.0,0.00016438,2]
[333944885,1722643851981,-500.0,0.00016438,2]
[333944886,1722643851990,-500.0,0.00016438,2]
[333944887,1722643852000,-2089.36,0.00016438,2]
[333944888,1722643852010,-558.65,0.00016438,2]
[333944889,1722643852021,-181.27769444,0.00016438,2]
[333944890,1722643852031,-500.0,0.00016438,2]
[333944891,1722643852041,-500.0,0.00016438,2]
[333944892,1722643852051,-500.0,0.00016438,2]
[333944893,1722643852061,-1279.28,0.00016438,2]
[333944894,1722643852070,-500.0,0.00016438,2]
[333944895,1722643852080,-2581.48,0.00016438,2]
[333944896,1722643852089,-151.0,0.00016438,2]
[333944897,1722643852099,-151.0,0.00016438,2]
[333944898,1722643852110,-1001.75,0.00016438,2]
[333944899,1722643852120,-500.0,0.00016438,2]
[333944900,1722643852130,-500.0,0.00016438,2]
[333944901,1722643852140,-500.0,0.00016438,2]
[333944902,1722643852149,-500.0,0.00016438,2]
[333944903,1722643852159,-500.0,0.00016438,2]
[333944904,1722643852169,-1177.18,0.00016438,2]
[333944905,1722643852178,-2229.03,0.00016438,2]
[333944906,1722643852188,-500.0,0.00016438,2]
[333944907,1722643852197,-1866.5,0.00016438,2]
[333944908,1722643852207,-575.68,0.00016438,2]
[333944909,1722643852217,-500.0,0.00016438,2]
[333944910,1722643852227,-736.91,0.00016438,2]
[333944911,1722643852238,-1091.48,0.00016438,2]
[333944912,1722643852247,-905.05,0.00016438,2]
[333944913,1722643852257,-500.0,0.00016438,2]
[333944914,1722643852266,-10476.69,0.00016438,2]
[333944915,1722643852276,-542.5,0.00016438,2]
[333944916,1722643852286,-500.0,0.00016438,2]
[333944917,1722643852296,-500.0,0.00016438,2]
[333944918,1722643852305,-500.0,0.00016438,2]
[333944919,1722643852315,-244.48324845,0.00016438,2]
[333944920,1722643852324,-622.82,0.00016438,2]
[333944921,1722643852705,-197.562318,0.00016438,2]
[333944922,1722643852742,-197.562318,0.00016438,2]
[333944923,1722643852751,-1650.29,0.00016438,2]
[333944924,1722643852761,-500.0,0.00016438,2]
[333944925,1722643852770,-1422.35,0.00016438,2]
[333944926,1722643852780,-500.0,0.00016438,2]
[333944927,1722643852789,-755.97,0.00016438,2]
[333944928,1722643852799,-1163.09,0.00016438,2]
[333944929,1722643852808,-1346.64,0.00016438,2]
[333944930,1722643852818,-500.0,0.00016438,2]
[333944931,1722643852828,-197.562318,0.00016438,2]
[333944932,1722643852837,-197.562318,0.00016438,2]
[333944933,1722643852847,-3059.35,0.00016438,2]
[333944934,1722643852858,-500.0,0.00016438,2]
[333944935,1722643852868,-547.37,0.00016438,2]
[333944936,1722643852878,-500.0,0.00016438,2]
[333944937,1722643852888,-500.0,0.00016438,2]
[333944938,1722643852898,-500.0,0.00016438,2]
[333944939,1722643852908,-500.0,0.00016438,2]
[333944940,1722643852917,-1225.89,0.00016438,2]
[333944941,1722643852927,-500.0,0.00016438,2]
[333944942,1722643852936,-500.0,0.00016438,2]
[333944943,1722643852946,-500.0,0.00016438,2]
[333944944,1722643852956,-1196.73,0.00016438,2]
[333944945,1722643852966,-500.0,0.00016438,2]
[333944946,1722643852976,-500.0,0.00016438,2]
[333944947,1722643852986,-521.65,0.00016438,2]
[333944948,1722643852997,-1600.48,0.00016438,2]
[333944949,1722643853007,-668.98,0.00016438,2]
[333944950,1722643853016,-500.0,0.00016438,2]
[333944951,1722643853027,-500.0,0.00016438,2]
[333944952,1722643853037,-500.0,0.00016438,2]
[333944953,1722643853047,-500.0,0.00016438,2]
[333944954,1722643853057,-741.2,0.00016438,2]
[333944955,1722643853066,-685.65,0.00016438,2]
[333944956,1722643853076,-500.0,0.00016438,2]
[333944957,1722643853086,-500.0,0.00016438,2]
[333944958,1722643853097,-500.0,0.00016438,2]
[333944959,1722643853107,-1616.29,0.00016438,2]
[333944960,1722643853118,-200.0,0.00016438,2]
[333944961,1722643853129,-536.79,0.00016438,2]
[333944962,1722643853139,-4125.28,0.00016438,2]
[333944963,1722643853149,-500.0,0.00016438,2]
[333944964,1722643853159,-500.0,0.00016438,2]
[333944965,1722643853169,-500.0,0.00016438,2]
[333944966,1722643853179,-1317.91,0.00016438,2]
[333944967,1722643853189,-746.51,0.00016438,2]
[333944968,1722643853199,-1427.36,0.00016438,2]
[333944969,1722643853209,-300.36118032,0.00016438,2]
[333944970,1722643853219,-1397.12,0.00016438,2]
[333944971,1722643853229,-2153.23,0.00016438,2]
[333944972,1722643853239,-689.1,0.00016438,2]
[333944973,1722643853249,-500.0,0.00016438,2]
[333944974,1722643853258,-672.39,0.00016438,2]
[333944975,1722643853268,-697.26,0.00016438,2]
[333944976,1722643853279,-927.2,0.00016438,2]
[333944977,1722643853289,-500.0,0.00016438,2]
[333944978,1722643853299,-500.0,0.00016438,2]
[333944979,1722643853309,-500.0,0.00016438,2]
[333944980,1722643853319,-3842.42,0.00016438,2]
[333944981,1722643853328,-1750.34,0.00016438,2]
[333944982,1722643853338,-500.0,0.00016438,2]
[333944983,1722643853348,-500.0,0.00016438,2]
[333944984,1722643853358,-500.0,0.00016438,2]
[333944985,1722643853368,-1245.28,0.00016438,2]
[333944986,1722643853378,-1715.68,0.00016438,2]
[333944987,1722643853388,-500.0,0.00016438,2]
[333944988,1722643853398,-500.0,0.00016438,2]
[333944989,1722643853407,-1075.21,0.00016438,2]
[333944990,1722643853417,-500.0,0.00016438,2]
[333944991,1722643853427,-500.0,0.00016438,2]
[333944992,1722643853436,-500.0,0.00016438,2]
[333944993,1722643853446,-4086.66,0.00016438,2]
[333944994,1722643853457,-500.0,0.00016438,2]
[333944995,1722643853470,-500.0,0.00016438,2]
[333944996,1722643853480,-500.0,0.00016438,2]
[333944997,1722643853490,-1728.49,0.00016438,2]
[333944998,1722643853499,-500.0,0.00016438,2]
[333944999,1722643853512,-151.0,0.00016438,2]
[333945000,1722643853523,-1031.78,0.00016438,2]
[333945001,1722643853532,-500.0,0.00016438,2]
[333945002,1722643853543,-500.0,0.00016438,2]
[333945003,1722643853553,-500.0,0.00016438,2]
[333945004,1722643853563,-500.0,0.00016438,2]
[333945005,1722643853572,-15763.53,0.00016438,2]
[333945006,1722643853582,-500.0,0.00016438,2]
[333945007,1722643853591,-500.0,0.00016438,2]
[333945008,1722643853601,-636.14,0.00016438,2]
[333945009,1722643853611,-500.0,0.00016438,2]
[333945010,1722643853621,-1075.96,0.00016438,2]
[333945011,1722643853630,-500.0,0.00016438,2]
[333945012,1722643853641,-702.36,0.00016438,2]
[333945013,1722643853651,-4641.54,0.00016438,2]
[333945014,1722643853661,-3052.81,0.00016438,2]
[333945015,1722643853671,-500.0,0.00016438,2]
[333945016,1722643853681,-500.0,0.00016438,2]
[333945017,1722643853691,-500.0,0.00016438,2]
[333945018,1722643853701,-523.03,0.00016438,2]
[333945019,1722643853711,-500.0,0.00016438,2]
[333945020,1722643853720,-792.8,0.00016438,2]
[333945021,1722643853730,-1344.24,0.00016438,2]
[333945022,1722643853739,-500.0,0.00016438,2]
[333945023,1722643853750,-819.76,0.00016438,2]
[333945024,1722643853759,-774.42,0.00016438,2]
[333945025,1722643853769,-2690.29,0.00016438,2]
[333945026,1722643853779,-18006.97,0.00016438,2]
[333945027,1722643853788,-1520.16,0.00016438,2]
[333945028,1722643853798,-1100.0,0.00016438,2]
[333945029,1722643853807,-808.75,0.00016438,2]
[333945030,1722643853817,-500.0,0.00016438,2]
[333945031,1722643853827,-1100.0,0.00016438,2]
[333945032,1722643853837,-2378.37,0.00016438,2]
[333945033,1722643853847,-500.0,0.00016438,2]
[333945034,1722643853857,-2040.15,0.00016438,2]
[333945035,1722643853867,-1100.0,0.00016438,2]
[333945036,1722643853878,-933.01,0.00016438,2]
[333945037,1722643853887,-1100.0,0.00016438,2]
[333945038,1722643853897,-1037.0,0.00016438,2]
[333945039,1722643853907,-3209.19,0.00016438,2]
[333945040,1722643853916,-500.0,0.00016438,2]
[333945041,1722643853926,-500.0,0.00016438,2]
[333945042,1722643853935,-500.0,0.00016438,2]
[333945043,1722643853945,-1307.41,0.00016438,2]
[333945044,1722643853955,-151.0,0.00016438,2]
[333945045,1722643853965,-151.0,0.00016438,2]
[333945046,1722643853975,-7700.8,0.00016438,2]
[333945047,1722643853985,-644.28,0.00016438,2]
[333945048,1722643853995,-2403.72,0.00016438,2]
[333945049,1722643854005,-553.72723281,0.00016438,2]
[333945050,1722643854015,-2314.82796695,0.00016438,2]
[333945051,1722643854044,-974.13203305,0.00016438,2]
[333945052,1722643854054,-395.50920581,0.00016438,2]
[333945053,1722643854153,-104.49079419,0.00016438,2]
[333945054,1722643854164,-500.0,0.00016438,2]
[333945055,1722643854173,-500.0,0.00016438,2]
[333945056,1722643854183,-5.27811452,0.00016438,2]
[333945057,1722643854194,-1371.16970358,0.00016438,2]
[333945058,1722643854205,-354.3921819,0.00016438,2]
[333945059,1722643854215,-553.14,0.00016438,2]
[333945060,1722643854225,-614.83675138,0.00016438,2]
[333945061,1722643854235,-694.37,0.00016438,2]
[333945062,1722643854244,-2636.7,0.00016438,2]
[333945063,1722643854254,-500.0,0.00016438,2]
[333945064,1722643854263,-500.0,0.00016438,2]
[333945065,1722643854273,-500.0,0.00016438,2]
[333945066,1722643854282,-500.0,0.00016438,2]
[333945067,1722643854292,-151.0,0.00016438,2]
[333945068,1722643854301,-500.0,0.00016438,2]
[333945069,1722643854311,-4292.59,0.00016438,2]
[333945070,1722643854322,-151.0,0.00016438,2]
[333945071,1722643854331,-2382.09,0.00016438,2]
[333945072,1722643854340,-500.0,0.00016438,2]
[333945073,1722643854350,-715.47,0.00016438,2]
[333945074,1722643854359,-500.0,0.00016438,2]
[333945075,1722643854369,-1535.34,0.00016438,2]
[333945076,1722643854379,-500.0,0.00016438,2]
[333945077,1722643854389,-500.0,0.00016438,2]
[333945078,1722643854399,-9666.4,0.00016438,2]
[333945079,1722643854409,-500.0,0.00016438,2]
[333945080,1722643854418,-500.0,0.00016438,2]
[333945081,1722643854428,-1871.46,0.00016438,2]
[333945082,1722643854439,-500.0,0.00016438,2]
[333945083,1722643854449,-500.0,0.00016438,2]
[333945084,1722643854459,-500.0,0.00016438,2]
[333945085,1722643854473,-500.0,0.00016438,2]
[333945086,1722643854483,-1165.65,0.00016438,2]
[333945087,1722643854493,-502.35,0.00016438,2]
[333945088,1722643854503,-920.72,0.00016438,2]
[333945089,1722643854515,-1078.67,0.00016438,2]
[333945090,1722643854525,-500.0,0.00016438,2]
[333945091,1722643854534,-14615.21,0.00016438,2]
[333945092,1722643854546,-500.0,0.00016438,2]
[333945093,1722643854556,-500.0,0.00016438,2]
[333945094,1722643854566,-500.0,0.00016438,2]
[333945095,1722643854575,-500.0,0.00016438,2]
[333945096,1722643854585,-11283.68,0.00016438,2]
[333945097,1722643854596,-500.0,0.00016438,2]
[333945098,1722643854606,-1694.09,0.00016438,2]
[333945099,1722643854616,-500.0,0.00016438,2]
[333945100,1722643854626,-500.0,0.00016438,2]
[333945101,1722643854636,-10434.04,0.00016438,2]
[333945102,1722643854645,-1431.66,0.00016438,2]
[333945103,1722643854655,-535.35,0.00016438,2]
[333945104,1722643854665,-1938.5,0.00016438,2]
[333945105,1722643854675,-500.0,0.00016438,2]
[333945106,1722643854685,-967.69,0.00016438,2]
[333945107,1722643854694,-22174.14,0.00016438,2]
[333945108,1722643854704,-5125.29,0.00016438,2]
[333945109,1722643854715,-1157.72,0.00016438,2]
[333945110,1722643854725,-500.0,0.00016438,2]
[333945111,1722643854735,-1010.06,0.00016438,2]
[333945112,1722643854746,-500.0,0.00016438,2]
[333945113,1722643854756,-10005.07,0.00016438,2]
[333945114,1722643854766,-1548.02,0.00016438,2]
[333945115,1722643854776,-1536.42,0.00016438,2]
[333945116,1722643854787,-3312.03,0.00016438,2]
[333945117,1722643854797,-1637.02,0.00016438,2]
[333945118,1722643854807,-985.32,0.00016438,2]
[333945119,1722643854818,-500.0,0.00016438,2]
[333945120,1722643854827,-3974.4,0.00016438,2]
[333945121,1722643854837,-3344.02,0.00016438,2]
[333945122,1722643854847,-1012.82,0.00016438,2]
[333945123,1722643854856,-1950.19,0.00016438,2]
[333945124,1722643854866,-1377.69,0.00016438,2]
[333945125,1722643854876,-500.0,0.00016438,2]
[333945126,1722643854886,-2980.71,0.00016438,2]
[333945127,1722643854895,-500.0,0.00016438,2]
[333945128,1722643854904,-784.94,0.00016438,2]
[333945129,1722643854914,-4601.49,0.00016438,2]
[333945130,1722643854924,-500.0,0.00016438,2]
[333945131,1722643854933,-2469.01,0.00016438,2]
[333945132,1722643854943,-511.96,0.00016438,2]
[333945133,1722643854953,-500.0,0.00016438,2]
[333945134,1722643854964,-500.0,0.00016438,2]
[333945135,1722643854973,-500.0,0.00016438,2]
[333945136,1722643854983,-728.16,0.00016438,2]
[333945137,1722643854992,-1795.3,0.00016438,2]
[333945138,1722643855002,-3438.46,0.00016438,2]
[333945139,1722643855012,-500.0,0.00016438,2]
[333945140,1722643855022,-500.0,0.00016438,2]
[333945141,1722643855033,-500.0,0.00016438,2]
[333945142,1722643855042,-2054.66,0.00016438,2]
[333945143,1722643855053,-500.0,0.00016438,2]
[333945144,1722643855063,-1707.42,0.00016438,2]
[333945145,1722643855073,-1068.56,0.00016438,2]
[333945146,1722643855083,-4520.72,0.00016438,2]
[333945147,1722643855092,-500.0,0.00016438,2]
[333945148,1722643855102,-500.0,0.00016438,2]
[333945149,1722643855111,-542.28,0.00016438,2]
[333945150,1722643855121,-858.42,0.00016438,2]
[333945151,1722643855131,-1138.42,0.00016438,2]
[333945152,1722643855140,-500.0,0.00016438,2]
[333945153,1722643855150,-5438.79,0.00016438,2]
[333945154,1722643855160,-1253.22,0.00016438,2]
[333945155,1722643855170,-1135.86,0.00016438,2]
[333945156,1722643855180,-500.0,0.00016438,2]
[333945157,1722643855190,-500.0,0.00016438,2]
[333945158,1722643855200,-5097.16,0.00016438,2]
[333945159,1722643855209,-1860.27,0.00016438,2]
[333945160,1722643855324,-706.57,0.00016438,2]
[333945161,1722643855334,-500.0,0.00016438,2]
[333945162,1722643855344,-6519.67,0.00016438,2]
[333945163,1722643855354,-9901.93,0.00016438,2]
[333945164,1722643855363,-500.0,0.00016438,2]
[333945165,1722643855373,-500.0,0.00016438,2]
[333945166,1722643855383,-500.0,0.00016438,2]
[333945167,1722643855392,-661.2,0.00016438,2]
[333945168,1722643855402,-1393.41,0.00016438,2]
[333945169,1722643855411,-1100.23,0.00016438,2]
[333945170,1722643855422,-2032.21,0.00016438,2]
[333945171,1722643855432,-500.0,0.00016438,2]
[333945172,1722643855442,-4336.43,0.00016438,2]
[333945173,1722643855451,-500.0,0.00016438,2]
[333945174,1722643855461,-1513.89002123,0.00016438,2]
[333945175,1722643855484,-688.56235155,0.00016438,2]
[333945176,1722643855500,-183.73762722,0.00016438,2]
[333945177,1722643855511,-5780.6,0.00016438,2]
[333945178,1722643855520,-282.17210876,0.00016438,2]
[333945179,1722643855531,-1190.19789124,0.00016438,2]
[333945180,1722643855542,-683.62,0.00016438,2]
[333945181,1722643855552,-972.39,0.00016438,2]
[333945182,1722643855562,-1929.47,0.00016438,2]
[333945183,1722643855571,-500.0,0.00016438,2]
[333945184,1722643855581,-2652.4,0.00016438,2]
[333945185,1722643855590,-659.33,0.00016438,2]
[333945186,1722643855600,-1680.93647192,0.00016438,2]
[333945187,1722643855615,-2603.85352808,0.00016438,2]
[333945188,1722643855624,-500.0,0.00016438,2]
[333945189,1722643855635,-504.14,0.00016438,2]
[333945190,1722643855644,-1455.82,0.00016438,2]
[333945191,1722643855653,-942.99,0.00016438,2]
[333945192,1722643855663,-500.0,0.00016438,2]
[333945193,1722643855672,-500.0,0.00016438,2]
[333945194,1722643855681,-1315.07,0.00016438,2]
[333945195,1722643855691,-2507.02,0.00016438,2]
[333945196,1722643855700,-1184.91,0.00016438,2]
[333945197,1722643855710,-500.0,0.00016438,2]
[333945198,1722643855720,-500.0,0.00016438,2]
[333945199,1722643855729,-500.0,0.00016438,2]
[333945200,1722643855739,-3442.66,0.00016438,2]
[333945201,1722643855749,-500.0,0.00016438,2]
[333945202,1722643855759,-500.0,0.00016438,2]
[333945203,1722643855768,-5228.2,0.00016438,2]
[333945204,1722643855777,-19506.82,0.00016438,2]
[333945205,1722643855787,-2006.23,0.00016438,2]
[333945206,1722643855797,-500.0,0.00016438,2]
[333945207,1722643855806,-1809.91,0.00016438,2]
[333945208,1722643855816,-500.0,0.00016438,2]
[333945209,1722643855826,-8408.75,0.00016438,2]
[333945210,1722643855835,-500.0,0.00016438,2]
[333945211,1722643855845,-4332.43,0.00016438,2]
[333945212,1722643855854,-1151.76,0.00016438,2]
[333945213,1722643855864,-500.0,0.00016438,2]
[333945214,1722643855874,-500.0,0.00016438,2]
[333945215,1722643855884,-592.5,0.00016438,2]
[333945216,1722643855893,-500.0,0.00016438,2]
[333945217,1722643855903,-500.0,0.00016438,2]
[333945218,1722643855912,-500.0,0.00016438,2]